Workbook

Sheet AOV
A1: Creation of Data and AOV - Use this Worksheet to Create Data for Analysis if Desired
J2: Create samples
B3: Trt 1 | C3: Trt 2 | J3: Trt 1 | K3: Trt 2
B4: 4.286524032 | C4: 3.913490021 | I4: Mean | J4: 4 | K4: 4.05
B5: 3.95596133 | C5: 3.753055276 | I5: Std. Dev. | J5: 0.2 | K5: 0.2
B6: 3.749557786 | C6: 4.123322399 | J6: =_xlfn.NORM.INV(RAND(),J$4,J$5) -> 3.954086696 | K6: =_xlfn.NORM.INV(RAND(),K$4,K$5) -> 3.980337261
B7: 3.907387983 | C7: 4.240927293 | J7: =_xlfn.NORM.INV(RAND(),J$4,J$5) -> 3.881752897 | K7: 4.088802095
B8: 4.195627726 | C8: 3.741747418 | J8: 3.99496796 | K8: 3.5710355
B9: 4.147391449 | C9: 3.965070447 | J9: 4.156848172 | K9: 4.098672478
B10: 3.576059567 | C10: 3.819552836 | J10: 3.937619561 | K10: 4.05251756
B11: 3.855530528 | C11: 3.653275138 | J11: 3.720828748 | K11: 4.352673726
B12: 4.081580137 | C12: 3.670667313 | J12: 4.038456949 | K12: 3.923391115
B13: 3.817762209 | C13: 3.892292626 | J13: 3.860627651 | K13: 4.359847991
B14: 3.796052401 | C14: 4.103886547 | J14: 3.934650671 | K14: 4.640241932
B15: 4.105836834 | C15: 4.122570499 | J15: 4.223267693 | K15: 4.155670192
B16: 3.861452571 | C16: 3.871391907 | J16: 4.025726442 | K16: 3.914147059
B17: 4.163502001 | C17: 3.780428946 | J17: 3.76669018 | K17: 4.075591106
B18: 4.438531726 | C18: 4.245869995 | J18: 4.10969593 | K18: 4.008593408
B19: 4.062375941 | C19: 3.848063436 | J19: 3.841893668 | K19: 4.549038395
B20: 3.382832621 | C20: 4.210094499 | J20: 3.791770145 | K20: 3.793032766
B21: 3.830964203 | C21: 3.905825974 | J21: 3.850338204 | K21: 3.998950073
B22: 4.173067064 | C22: 4.090056816 | J22: 4.188562147 | K22: 4.222910374
B23: 3.937841667 | C23: 4.20890256 | J23: 3.734239856 | K23: 4.195947267
B24: 3.502958629 | C24: 4.172760866 | J24: 3.725175928 | K24: 3.975410131
B25: 3.963267581 | C25: 3.991651275 | J25: 3.581012835 | K25: 4.305744917
B26: 4.185334002 | C26: 3.915114506 | J26: 4.339631125 | K26: 3.778783859
B27: 3.847175912 | C27: 3.815647504 | J27: 3.973549166 | K27: 4.126480825
B28: 3.977735394 | C28: 4.062262932 | J28: 4.12005265 | K28: 3.842399435
B29: 4.640302062 | C29: 4.083802441 | J29: 3.89295805 | K29: 4.340543667
B30: 3.777217766 | C30: 4.175927565 | J30: 3.904524399 | K30: 4.059127263
B31: 3.91643409 | C31: 4.051437308 | J31: 4.269549797 | K31: 4.206172347
B32: 4.011226535 | C32: 4.146822323 | J32: 4.168717777 | K32: 4.173894317
B33: 3.989740511 | C33: 4.322630093 | J33: 3.413177972 | K33: 3.894051465
B34: 4.071540807 | C34: 4.305666334 | J34: 3.807167705 | K34: 3.94490872
B35: 3.724271249 | C35: 4.079787939 | J35: 3.801109246 | K35: 3.861573389
B36: 3.935369058 | C36: 4.096283788 | J36: 3.418052788 | K36: 3.843657917
B37: 4.063321701 | C37: 3.796325973 | J37: 3.956619879 | K37: 4.255147791
B38: 3.678922111 | C38: 4.00176851 | J38: 4.052537583 | K38: 3.948136571
B39: 3.807890609 | C39: 4.230952243 | J39: 4.194396929 | K39: 4.354144966
B40: 4.190687026 | C40: 4.165607013 | J40: 4.117577245 | K40: 4.087995916
B41: 3.947421978 | C41: 3.896444115 | J41: 3.919651252 | K41: 3.507836593
B42: 3.942835943 | C42: 4.020183121 | J42: 4.389370636 | K42: 4.104631406
B43: 3.449530833 | C43: 3.90140377 | J43: 3.866222986 | K43: 4.244565173
A44: Mean | B44: =AVERAGE(B4:B43) -> 3.948725589 | C44: =AVERAGE(C4:C43) -> 4.009824289 | D44: =AVERAGE(B44:C44) -> 3.979274939 | J44: 4.367649831 | K44: 3.91586716
A45: Std dev | B45: =STDEV(B4:B43) -> 0.2499747998 | C45: =STDEV(C4:C43) -> 0.1790931048 | D45: =AVERAGE(B45:C45) -> 0.2145339523 | J45: 3.78517875 | K45: 4.054130736
A46: Count | B46: =COUNT(B4:B43) -> 40 | C46: =COUNT(C4:C43) -> 40 | D46: =SUM(B46:C46) -> 80
A49: Calculations for AOV - these values are based on the data in Columns B and C of the "Data" worksheet
B50: =SUM(Data!B9:B48) -> 157.9490236 | C50: =SUM(Data!C9:C48) -> 140.1783813 | D50: =SUM(B50:C50) -> 298.1274049
B51: =SUMSQ(Data!B9:B48) -> 626.1343598 | C51: =SUMSQ(Data!C9:C48) -> 562.5801933 | D51: =SUM(B51:C51) -> 1188.714553
B52: =B50^2 -> 24947.89405 | C52: =C50^2 -> 19649.97858 | D52: 44597.87263
B53: =B52/Data!B52 -> 623.6973512 | C53: =C52/Data!C52 -> 561.4279596 | D53: 1185.125311
A55: CF | B55: =D50^2/Data!E52 -> 1185.065994
A56: Total | B56: =D51-B55 -> 3.648559311 | F56: =Data!E52-1 -> 74
A57: Trt | B57: =D53-B55 -> 0.05931691408 | F57: =B59-1 -> 1 | G57: =B57/F57 -> 0.05931691408 | H57: =G57/G58 -> 1.206420255 | I57: =FDIST(H57,F57,F58) -> 0.2756517766 | K57: =_xlfn.T.TEST(B4:B18,C4:C18,1,2) -> 0.1924939762
A58: Error | B58: =B56-B57 -> 3.589242397 | C58: =B58/C59 -> 0.04916770407 | D58: =SQRT(C58) -> 0.2217379175 | F58: =F56-F57 -> 73 | G58: =B58/F58 -> 0.04916770407
B59: =COUNT(Data!B49:C49) -> 2 | C59: =Data!E52-AOV!B59 -> 73
G60: =SQRT(G58) -> 0.2217379175 | H60: s2 pooled

Sheet Data
A1: Resampling t-test
B7: Treatment
A8: Observation | B8: A | C8: B
A9: 1 | B9: 4.286524032 | C9: 3.913490021
A10: 2 | B10: 3.95596133 | C10: 3.753055276
A11: 3 | B11: 3.749557786 | C11: 4.123322399
A12: 4 | B12: 3.907387983 | C12: 4.240927293 | F12: Probability Values for Deviations Test
A13: 5 | B13: 4.195627726 | C13: 3.741747418
A14: 6 | B14: 4.147391449 | C14: 3.965070447 | F14: Empirical P-value | G14: 0.134
A15: 7 | B15: 3.576059567 | C15: 3.819552836
A16: 8 | B16: 3.855530528 | C16: 3.653275138
A17: 9 | B17: 4.081580137 | C17: 3.670667313 | F17: Probability Differences Among Means Based on AOV and t-test
A18: 10 | B18: 3.817762209 | C18: 3.892292626
A19: 11 | B19: 3.796052401 | C19: 4.103886547 | F19: AOV F-test | G19: =IF(AOV!I57<0.001,0.001,AOV!I57) -> 0.2756517766
A20: 12 | B20: 4.105836834 | C20: 4.122570499 | F20: t-test (one tail) | G20: =IF(_xlfn.T.TEST(B9:B48,C9:C48,1,2)<0.001,0.001,(_xlfn.T.TEST(B9:B48,C9:C48,1,2))) -> 0.1378258883
A21: 13 | B21: 3.861452571 | C21: 3.871391907
A22: 14 | B22: 4.163502001 | C22: 3.780428946
A23: 15 | B23: 4.438531726 | C23: 4.245869995
A24: 16 | B24: 4.062375941 | C24: 3.848063436
A25: 17 | B25: 3.382832621 | C25: 4.210094499
A26: 18 | B26: 3.830964203 | C26: 3.905825974
A27: 19 | B27: 4.173067064 | C27: 4.090056816
A28: 20 | B28: 3.937841667 | C28: 4.20890256
A29: 21 | B29: 3.502958629 | C29: 4.172760866
A30: 22 | B30: 3.963267581 | C30: 3.991651275
A31: 23 | B31: 4.185334002 | C31: 3.915114506
A32: 24 | B32: 3.847175912 | C32: 3.815647504
A33: 25 | B33: 3.977735394 | C33: 4.062262932
A34: 26 | B34: 4.640302062 | C34: 4.083802441
A35: 27 | B35: 3.777217766 | C35: 4.175927565
A36: 28 | B36: 3.91643409 | C36: 4.051437308
A37: 29 | B37: 4.011226535 | C37: 4.146822323
A38: 30 | B38: 3.989740511 | C38: 4.322630093
A39: 31 | B39: 4.071540807 | C39: 4.305666334
A40: 32 | B40: 3.724271249 | C40: 4.079787939
A41: 33 | B41: 3.935369058 | C41: 4.096283788
A42: 34 | B42: 4.063321701 | C42: 3.796325973
A43: 35 | B43: 3.678922111 | C43: 4.00176851
A44: 36 | B44: 3.807890609
A45: 37 | B45: 4.190687026
A46: 38 | B46: 3.947421978
A47: 39 | B47: 3.942835943
A48: 40 | B48: 3.449530833
A49: Means | B49: =AVERAGE(B9:B48) -> 3.948725589 | C49: =AVERAGE(C9:C48) -> 4.005096609
A50: Overall Mean | B50: =AVERAGE(B49:C49) -> 3.976911099
B51: =B49-C49 -> -0.05637101938
B52: =COUNT(B9:B48) -> 40 | C52: =COUNT(C9:C48) -> 35 | E52: =COUNT(B9:C48) -> 75

Sheet Resample Data
A1: 1 | B1: 4.286524032 | D1: =Data!E52 -> 75
A2: 2 | B2: 3.95596133
A3: 3 | B3: 3.749557786
A4: 4 | B4: 3.907387983
A5: 5 | B5: 4.195627726
A6: 6 | B6: 4.147391449
A7: 7 | B7: 3.576059567
A8: 8 | B8: 3.855530528
A9: 9 | B9: 4.081580137
A10: 10 | B10: 3.817762209
A11: 11 | B11: 3.796052401
A12: 12 | B12: 4.105836834
A13: 13 | B13: 3.861452571
A14: 14 | B14: 4.163502001
A15: 15 | B15: 4.438531726
A16: 16 | B16: 4.062375941
A17: 17 | B17: 3.382832621
A18: 18 | B18: 3.830964203
A19: 19 | B19: 4.173067064
A20: 20 | B20: 3.937841667
A21: 21 | B21: 3.502958629
A22: 22 | B22: 3.963267581
A23: 23 | B23: 4.185334002
A24: 24 | B24: 3.847175912
A25: 25 | B25: 3.977735394
A26: 26 | B26: 4.640302062
A27: 27 | B27: 3.777217766
A28: 28 | B28: 3.91643409
A29: 29 | B29: 4.011226535
A30: 30 | B30: 3.989740511
A31: 31 | B31: 4.071540807
A32: 32 | B32: 3.724271249
A33: 33 | B33: 3.935369058
A34: 34 | B34: 4.063321701
A35: 35 | B35: 3.678922111
A36: 36 | B36: 3.807890609
A37: 37 | B37: 4.190687026
A38: 38 | B38: 3.947421978
A39: 39 | B39: 3.942835943
A40: 40 | B40: 3.449530833
A41: 41 | B41: 3.913490021
A42: 42 | B42: 3.753055276
A43: 43 | B43: 4.123322399
A44: 44 | B44: 4.240927293
A45: 45 | B45: 3.741747418
A46: 46 | B46: 3.965070447
A47: 47 | B47: 3.819552836
A48: 48 | B48: 3.653275138
A49: 49 | B49: 3.670667313
A50: 50 | B50: 3.892292626
A51: 51 | B51: 4.103886547
A52: 52 | B52: 4.122570499
A53: 53 | B53: 3.871391907
A54: 54 | B54: 3.780428946
A55: 55 | B55: 4.245869995
A56: 56 | B56: 3.848063436
A57: 57 | B57: 4.210094499
A58: 58 | B58: 3.905825974
A59: 59 | B59: 4.090056816
A60: 60 | B60: 4.20890256
A61: 61 | B61: 4.172760866
A62: 62 | B62: 3.991651275
A63: 63 | B63: 3.915114506
A64: 64 | B64: 3.815647504
A65: 65 | B65: 4.062262932
A66: 66 | B66: 4.083802441
A67: 67 | B67: 4.175927565
A68: 68 | B68: 4.051437308
A69: 69 | B69: 4.146822323
A70: 70 | B70: 4.322630093
A71: 71 | B71: 4.305666334
A72: 72 | B72: 4.079787939
A73: 73 | B73: 4.096283788
A74: 74 | B74: 3.796325973
A75: 75 | B75: 4.00176851
A76: 76
A77: 77
A78: 78
A79: 79
A80: 80

Sheet Simulated Data
A1: Simulated Data
B4: Simulated Treatment Means
A5: Rep | B5: A | C5: B | D5: A-B
A6: 1 | B6: =INDEX('Resample Data'!$B$1:$B$80,INT(RAND()*'Resample Data'!$D$1)+1,INT(RAND()*1)+1) -> 4.103886547 | C6: =INDEX('Resample Data'!$B$1:$B$80,INT(RAND()*'Resample Data'!$D$1)+1,INT(RAND()*1)+1) -> 3.819552836 | D6: =B6-C6 -> 0.2843337101
A7: 2 | B7: =INDEX('Resample Data'!$B$1:$B$80,INT(RAND()*'Resample Data'!$D$1)+1,INT(RAND()*1)+1) -> 4.175927565 | C7: =INDEX('Resample Data'!$B$1:$B$80,INT(RAND()*'Resample Data'!$D$1)+1,INT(RAND()*1)+1) -> 3.907387983 | D7: 0.2685395815
A8: 3 | B8: =INDEX('Resample Data'!$B$1:$B$80,INT(RAND()*'Resample Data'!$D$1)+1,INT(RAND()*1)+1) -> 4.245869995 | C8: =INDEX('Resample Data'!$B$1:$B$80,INT(RAND()*'Resample Data'!$D$1)+1,INT(RAND()*1)+1) -> 4.146822323 | D8: 0.09904767245
A9: 4 | B9: =INDEX('Resample Data'!$B$1:$B$80,INT(RAND()*'Resample Data'!$D$1)+1,INT(RAND()*1)+1) -> 4.195627726 | C9: =INDEX('Resample Data'!$B$1:$B$80,INT(RAND()*'Resample Data'!$D$1)+1,INT(RAND()*1)+1) -> 3.91643409 | D9: 0.2791936369
A10: 5 | B10: =INDEX('Resample Data'!$B$1:$B$80,INT(RAND()*'Resample Data'!$D$1)+1,INT(RAND()*1)+1) -> 3.942835943 | C10: =INDEX('Resample Data'!$B$1:$B$80,INT(RAND()*'Resample Data'!$D$1)+1,INT(RAND()*1)+1) -> 4.195627726 | D10: -0.2527917838
A11: 6 | B11: =INDEX('Resample Data'!$B$1:$B$80,INT(RAND()*'Resample Data'!$D$1)+1,INT(RAND()*1)+1) -> 4.245869995 | C11: =INDEX('Resample Data'!$B$1:$B$80,INT(RAND()*'Resample Data'!$D$1)+1,INT(RAND()*1)+1) -> 3.724271249 | D11: 0.5215987461
A12: 7 | B12: =INDEX('Resample Data'!$B$1:$B$80,INT(RAND()*'Resample Data'!$D$1)+1,INT(RAND()*1)+1) -> 4.20890256 | C12: =INDEX('Resample Data'!$B$1:$B$80,INT(RAND()*'Resample Data'!$D$1)+1,INT(RAND()*1)+1) -> 4.210094499 | D12: -0.00119193894
A13: 8 | B13: =INDEX('Resample Data'!$B$1:$B$80,INT(RAND()*'Resample Data'!$D$1)+1,INT(RAND()*1)+1) -> 3.576059567 | C13: =INDEX('Resample Data'!$B$1:$B$80,INT(RAND()*'Resample Data'!$D$1)+1,INT(RAND()*1)+1) -> 3.848063436 | D13: -0.2720038695
A14: 9 | B14: =INDEX('Resample Data'!$B$1:$B$80,INT(RAND()*'Resample Data'!$D$1)+1,INT(RAND()*1)+1) -> 4.147391449 | C14: =INDEX('Resample Data'!$B$1:$B$80,INT(RAND()*'Resample Data'!$D$1)+1,INT(RAND()*1)+1) -> 3.807890609 | D14: 0.3395008399
A15: 10 | B15: =INDEX('Resample Data'!$B$1:$B$80,INT(RAND()*'Resample Data'!$D$1)+1,INT(RAND()*1)+1) -> 4.103886547 | C15: =INDEX('Resample Data'!$B$1:$B$80,INT(RAND()*'Resample Data'!$D$1)+1,INT(RAND()*1)+1) -> 3.95596133 | D15: 0.1479252163
A16: 11 | B16: =INDEX('Resample Data'!$B$1:$B$80,INT(RAND()*'Resample Data'!$D$1)+1,INT(RAND()*1)+1) -> 3.724271249 | C16: =INDEX('Resample Data'!$B$1:$B$80,INT(RAND()*'Resample Data'!$D$1)+1,INT(RAND()*1)+1) -> 3.907387983 | D16: -0.1831167337
A17: 12 | B17: =INDEX('Resample Data'!$B$1:$B$80,INT(RAND()*'Resample Data'!$D$1)+1,INT(RAND()*1)+1) -> 4.122570499 | C17: =INDEX('Resample Data'!$B$1:$B$80,INT(RAND()*'Resample Data'!$D$1)+1,INT(RAND()*1)+1) -> 3.830964203 | D17: 0.2916062959
A18: 13 | B18: =INDEX('Resample Data'!$B$1:$B$80,INT(RAND()*'Resample Data'!$D$1)+1,INT(RAND()*1)+1) -> 4.210094499 | C18: =INDEX('Resample Data'!$B$1:$B$80,INT(RAND()*'Resample Data'!$D$1)+1,INT(RAND()*1)+1) -> 3.847175912 | D18: 0.3629185871
A19: 14 | B19: =INDEX('Resample Data'!$B$1:$B$80,INT(RAND()*'Resample Data'!$D$1)+1,INT(RAND()*1)+1) -> 3.817762209 | C19: =INDEX('Resample Data'!$B$1:$B$80,INT(RAND()*'Resample Data'!$D$1)+1,INT(RAND()*1)+1) -> 4.123322399 | D19: -0.3055601903
A20: 15 | B20: =INDEX('Resample Data'!$B$1:$B$80,INT(RAND()*'Resample Data'!$D$1)+1,INT(RAND()*1)+1) -> 3.830964203 | C20: =INDEX('Resample Data'!$B$1:$B$80,INT(RAND()*'Resample Data'!$D$1)+1,INT(RAND()*1)+1) -> 3.915114506 | D20: -0.08415030338
A21: 16 | B21: =INDEX('Resample Data'!$B$1:$B$80,INT(RAND()*'Resample Data'!$D$1)+1,INT(RAND()*1)+1) -> 3.991651275 | C21: =INDEX('Resample Data'!$B$1:$B$80,INT(RAND()*'Resample Data'!$D$1)+1,INT(RAND()*1)+1) -> 4.173067064 | D21: =B21-C21 -> -0.1814157896
A22: 17 | B22: =INDEX('Resample Data'!$B$1:$B$80,INT(RAND()*'Resample Data'!$D$1)+1,INT(RAND()*1)+1) -> 4.185334002 | C22: =INDEX('Resample Data'!$B$1:$B$80,INT(RAND()*'Resample Data'!$D$1)+1,INT(RAND()*1)+1) -> 3.937841667 | D22: 0.2474923351
A23: 18 | B23: =INDEX('Resample Data'!$B$1:$B$80,INT(RAND()*'Resample Data'!$D$1)+1,INT(RAND()*1)+1) -> 4.172760866 | C23: =INDEX('Resample Data'!$B$1:$B$80,INT(RAND()*'Resample Data'!$D$1)+1,INT(RAND()*1)+1) -> 4.083802441 | D23: 0.08895842506
A24: 19 | B24: =INDEX('Resample Data'!$B$1:$B$80,INT(RAND()*'Resample Data'!$D$1)+1,INT(RAND()*1)+1) -> 3.780428946 | C24: =INDEX('Resample Data'!$B$1:$B$80,INT(RAND()*'Resample Data'!$D$1)+1,INT(RAND()*1)+1) -> 3.905825974 | D24: -0.1253970276
A25: 20 | B25: =INDEX('Resample Data'!$B$1:$B$80,INT(RAND()*'Resample Data'!$D$1)+1,INT(RAND()*1)+1) -> 3.892292626 | C25: =INDEX('Resample Data'!$B$1:$B$80,INT(RAND()*'Resample Data'!$D$1)+1,INT(RAND()*1)+1) -> 4.146822323 | D25: -0.2545296969
A26: 21 | B26: =INDEX('Resample Data'!$B$1:$B$80,INT(RAND()*'Resample Data'!$D$1)+1,INT(RAND()*1)+1) -> 4.173067064 | C26: =INDEX('Resample Data'!$B$1:$B$80,INT(RAND()*'Resample Data'!$D$1)+1,INT(RAND()*1)+1) -> 3.819552836 | D26: 0.353514228
A27: 22 | B27: =INDEX('Resample Data'!$B$1:$B$80,INT(RAND()*'Resample Data'!$D$1)+1,INT(RAND()*1)+1) -> 3.937841667 | C27: =INDEX('Resample Data'!$B$1:$B$80,INT(RAND()*'Resample Data'!$D$1)+1,INT(RAND()*1)+1) -> 3.991651275 | D27: -0.05380960825
A28: 23 | B28: =INDEX('Resample Data'!$B$1:$B$80,INT(RAND()*'Resample Data'!$D$1)+1,INT(RAND()*1)+1) -> 4.175927565 | C28: =INDEX('Resample Data'!$B$1:$B$80,INT(RAND()*'Resample Data'!$D$1)+1,INT(RAND()*1)+1) -> 3.653275138 | D28: 0.5226524263
A29: 24 | B29: =INDEX('Resample Data'!$B$1:$B$80,INT(RAND()*'Resample Data'!$D$1)+1,INT(RAND()*1)+1) -> 4.640302062 | C29: =INDEX('Resample Data'!$B$1:$B$80,INT(RAND()*'Resample Data'!$D$1)+1,INT(RAND()*1)+1) -> 3.796052401 | D29: 0.8442496613
A30: 25 | B30: =INDEX('Resample Data'!$B$1:$B$80,INT(RAND()*'Resample Data'!$D$1)+1,INT(RAND()*1)+1) -> 4.103886547 | C30: =INDEX('Resample Data'!$B$1:$B$80,INT(RAND()*'Resample Data'!$D$1)+1,INT(RAND()*1)+1) -> 3.819552836 | D30: 0.2843337101
A31: 26 | B31: =INDEX('Resample Data'!$B$1:$B$80,INT(RAND()*'Resample Data'!$D$1)+1,INT(RAND()*1)+1) -> 3.989740511 | C31: =INDEX('Resample Data'!$B$1:$B$80,INT(RAND()*'Resample Data'!$D$1)+1,INT(RAND()*1)+1) -> 3.815647504 | D31: 0.1740930068
A32: 27 | B32: =INDEX('Resample Data'!$B$1:$B$80,INT(RAND()*'Resample Data'!$D$1)+1,INT(RAND()*1)+1) -> 4.305666334 | C32: =INDEX('Resample Data'!$B$1:$B$80,INT(RAND()*'Resample Data'!$D$1)+1,INT(RAND()*1)+1) -> 3.977735394 | D32: 0.32793094
A33: 28 | B33: =INDEX('Resample Data'!$B$1:$B$80,INT(RAND()*'Resample Data'!$D$1)+1,INT(RAND()*1)+1) -> 4.090056816 | C33: =INDEX('Resample Data'!$B$1:$B$80,INT(RAND()*'Resample Data'!$D$1)+1,INT(RAND()*1)+1) -> 4.438531726 | D33: -0.3484749097
A34: 29 | B34: =INDEX('Resample Data'!$B$1:$B$80,INT(RAND()*'Resample Data'!$D$1)+1,INT(RAND()*1)+1) -> 4.090056816 | C34: =INDEX('Resample Data'!$B$1:$B$80,INT(RAND()*'Resample Data'!$D$1)+1,INT(RAND()*1)+1) -> 3.382832621 | D34: 0.7072241952
A35: 30 | B35: =INDEX('Resample Data'!$B$1:$B$80,INT(RAND()*'Resample Data'!$D$1)+1,INT(RAND()*1)+1) -> 4.105836834 | C35: =INDEX('Resample Data'!$B$1:$B$80,INT(RAND()*'Resample Data'!$D$1)+1,INT(RAND()*1)+1) -> 3.796052401 | D35: 0.3097844333
A36: 31 | B36: =INDEX('Resample Data'!$B$1:$B$80,INT(RAND()*'Resample Data'!$D$1)+1,INT(RAND()*1)+1) -> 3.847175912 | C36: =INDEX('Resample Data'!$B$1:$B$80,INT(RAND()*'Resample Data'!$D$1)+1,INT(RAND()*1)+1) -> 4.322630093 | D36: -0.4754541813
A37: 32 | B37: =INDEX('Resample Data'!$B$1:$B$80,INT(RAND()*'Resample Data'!$D$1)+1,INT(RAND()*1)+1) -> 3.935369058 | C37: =INDEX('Resample Data'!$B$1:$B$80,INT(RAND()*'Resample Data'!$D$1)+1,INT(RAND()*1)+1) -> 3.753055276 | D37: 0.1823137817
A38: 33 | B38: =INDEX('Resample Data'!$B$1:$B$80,INT(RAND()*'Resample Data'!$D$1)+1,INT(RAND()*1)+1) -> 4.051437308 | C38: =INDEX('Resample Data'!$B$1:$B$80,INT(RAND()*'Resample Data'!$D$1)+1,INT(RAND()*1)+1) -> 3.819552836 | D38: 0.2318844713
A39: 34 | B39: =INDEX('Resample Data'!$B$1:$B$80,INT(RAND()*'Resample Data'!$D$1)+1,INT(RAND()*1)+1) -> 3.855530528 | C39: =INDEX('Resample Data'!$B$1:$B$80,INT(RAND()*'Resample Data'!$D$1)+1,INT(RAND()*1)+1) -> 4.245869995 | D39: -0.3903394675
A40: 35 | B40: =INDEX('Resample Data'!$B$1:$B$80,INT(RAND()*'Resample Data'!$D$1)+1,INT(RAND()*1)+1) -> 4.105836834 | C40: =INDEX('Resample Data'!$B$1:$B$80,INT(RAND()*'Resample Data'!$D$1)+1,INT(RAND()*1)+1) -> 4.195627726 | D40: -0.08979089242
A41: 36 | B41: =INDEX('Resample Data'!$B$1:$B$80,INT(RAND()*'Resample Data'!$D$1)+1,INT(RAND()*1)+1) -> 3.753055276 | C41: =INDEX('Resample Data'!$B$1:$B$80,INT(RAND()*'Resample Data'!$D$1)+1,INT(RAND()*1)+1) -> 3.977735394 | D41: -0.2246801182
A42: 37 | B42: =INDEX('Resample Data'!$B$1:$B$80,INT(RAND()*'Resample Data'!$D$1)+1,INT(RAND()*1)+1) -> 3.796325973 | C42: =INDEX('Resample Data'!$B$1:$B$80,INT(RAND()*'Resample Data'!$D$1)+1,INT(RAND()*1)+1) -> 3.935369058 | D42: -0.1390430846
A43: 38 | B43: =INDEX('Resample Data'!$B$1:$B$80,INT(RAND()*'Resample Data'!$D$1)+1,INT(RAND()*1)+1) -> 4.146822323 | C43: =INDEX('Resample Data'!$B$1:$B$80,INT(RAND()*'Resample Data'!$D$1)+1,INT(RAND()*1)+1) -> 4.172760866 | D43: -0.02593854299
A44: 39 | B44: =INDEX('Resample Data'!$B$1:$B$80,INT(RAND()*'Resample Data'!$D$1)+1,INT(RAND()*1)+1) -> 3.753055276 | C44: =INDEX('Resample Data'!$B$1:$B$80,INT(RAND()*'Resample Data'!$D$1)+1,INT(RAND()*1)+1) -> 3.819552836 | D44: -0.06649756048
A45: 40 | B45: =INDEX('Resample Data'!$B$1:$B$80,INT(RAND()*'Resample Data'!$D$1)+1,INT(RAND()*1)+1) -> 4.245869995 | C45: =INDEX('Resample Data'!$B$1:$B$80,INT(RAND()*'Resample Data'!$D$1)+1,INT(RAND()*1)+1) -> 3.937841667 | D45: 0.3080283289 | E45: 3.972162845 | F45: 4.005152285 | G45: =E45-F45 -> -0.03298944067

Sheet Prob A-B
A1: Simulated Differences for Treatment A - Treatment B
G2: Observed A-B | H2: =Data!B51 -> -0.05637101938
A3: Rep | B3: Differences | C3: Test | H3: 0.134
A4: 1 | B4: -0.1648113883 | C4: =IF(B4>=$H$2,1,0) -> 0 | H4: =IF(H2>B1003,0.001,IF(H3=1,0.001,IF(H2>0,(1-H3),H3))) -> 0.134
A5: 2 | B5: -0.1563208398 | C5: =IF(B5>=$H$2,1,0) -> 0
A6: 3 | B6: -0.1550135302 | C6: 0
A7: 4 | B7: -0.1507971853 | C7: 0
A8: 5 | B8: -0.1427654315 | C8: 0
A9: 6 | B9: -0.1374238739 | C9: 0
A10: 7 | B10: -0.1273888799 | C10: 0
A11: 8 | B11: -0.1246058398 | C11: 0
A12: 9 | B12: -0.1232694589 | C12: 0
A13: 10 | B13: -0.1207809962 | C13: 0
A14: 11 | B14: -0.1181201548 | C14: 0
A15: 12 | B15: -0.1171119425 | C15: 0
A16: 13 | B16: -0.1163915003 | C16: 0
A17: 14 | B17: -0.1145581604 | C17: 0
A18: 15 | B18: -0.114239946 | C18: 0
A19: 16 | B19: -0.113330188 | C19: 0
A20: 17 | B20: -0.1113229295 | C20: 0
A21: 18 | B21: -0.1111415625 | C21: 0
A22: 19 | B22: -0.1099595729 | C22: 0
A23: 20 | B23: -0.1092666286 | C23: 0
A24: 21 | B24: -0.1084773792 | C24: 0
A25: 22 | B25: -0.1062363189 | C25: 0
A26: 23 | B26: -0.1049743608 | C26: 0
A27: 24 | B27: -0.1047727673 | C27: 0
A28: 25 | B28: -0.1036406635 | C28: 0
A29: 26 | B29: -0.1032747516 | C29: 0
A30: 27 | B30: -0.1028504635 | C30: 0
A31: 28 | B31: -0.1016442454 | C31: 0
A32: 29 | B32: -0.1002910223 | C32: 0
A33: 30 | B33: -0.09976836168 | C33: 0
A34: 31 | B34: -0.09975973334 | C34: 0
A35: 32 | B35: -0.0994099784 | C35: 0
A36: 33 | B36: -0.09932660197 | C36: 0
A37: 34 | B37: -0.09909007378 | C37: 0
A38: 35 | B38: -0.09685207316 | C38: 0
A39: 36 | B39: -0.09611995492 | C39: 0
A40: 37 | B40: -0.09565710524 | C40: 0
A41: 38 | B41: -0.09534192241 | C41: 0
A42: 39 | B42: -0.09389729623 | C42: 0
A43: 40 | B43: -0.09105776528 | C43: 0
A44: 41 | B44: -0.09086741583 | C44: 0
A45: 42 | B45: -0.09060488154 | C45: 0
A46: 43 | B46: -0.08999125621 | C46: 0
A47: 44 | B47: -0.08919112691 | C47: 0
A48: 45 | B48: -0.08717323289 | C48: 0
A49: 46 | B49: -0.08711964596 | C49: 0
A50: 47 | B50: -0.08698833807 | C50: 0
A51: 48 | B51: -0.08631884864 | C51: 0
A52: 49 | B52: -0.08597844109 | C52: 0
A53: 50 | B53: -0.08580583857 | C53: 0
A54: 51 | B54: -0.0856533446 | C54: 0
A55: 52 | B55: -0.08433035169 | C55: 0
A56: 53 | B56: -0.08430640008 | C56: 0
A57: 54 | B57: -0.08379378364 | C57: 0
A58: 55 | B58: -0.08340193258 | C58: 0
A59: 56 | B59: -0.08237754428 | C59: 0
A60: 57 | B60: -0.0820664558 | C60: 0
A61: 58 | B61: -0.08196929855 | C61: 0
A62: 59 | B62: -0.08168143293 | C62: 0
A63: 60 | B63: -0.08151332164 | C63: 0
A64: 61 | B64: -0.07986228788 | C64: 0
A65: 62 | B65: -0.07897777651 | C65: 0
A66: 63 | B66: -0.07887177115 | C66: 0
A67: 64 | B67: -0.0782617535 | C67: 0
A68: 65 | B68: -0.07822279628 | C68: 0
A69: 66 | B69: -0.07735632091 | C69: =IF(B69>=$H$2,1,0) -> 0
A70: 67 | B70: -0.07681089918 | C70: 0
A71: 68 | B71: -0.07640971857 | C71: 0
A72: 69 | B72: -0.07633953148 | C72: 0
A73: 70 | B73: -0.07599133115 | C73: 0
A74: 71 | B74: -0.074504986 | C74: 0
A75: 72 | B75: -0.07432582942 | C75: 0
A76: 73 | B76: -0.0735946749 | C76: 0
A77: 74 | B77: -0.07318821958 | C77: 0
A78: 75 | B78: -0.07284928149 | C78: 0
A79: 76 | B79: -0.07281654121 | C79: 0
A80: 77 | B80: -0.07245772856 | C80: 0
A81: 78 | B81: -0.07240684677 | C81: 0
A82: 79 | B82: -0.07202830345 | C82: 0
A83: 80 | B83: -0.07185865671 | C83: 0
A84: 81 | B84: -0.07036953752 | C84: 0
A85: 82 | B85: -0.07028317335 | C85: 0
A86: 83 | B86: -0.07027232506 | C86: 0
A87: 84 | B87: -0.07012742216 | C87: 0
A88: 85 | B88: -0.0695111525 | C88: 0
A89: 86 | B89: -0.06925162635 | C89: 0
A90: 87 | B90: -0.06870167163 | C90: 0
A91: 88 | B91: -0.06813266384 | C91: 0
A92: 89 | B92: -0.06800906712 | C92: 0
A93: 90 | B93: -0.06794134679 | C93: 0
A94: 91 | B94: -0.06762074872 | C94: 0
A95: 92 | B95: -0.06746408614 | C95: 0
A96: 93 | B96: -0.06733408268 | C96: 0
A97: 94 | B97: -0.06688270149 | C97: 0
A98: 95 | B98: -0.06685477117 | C98: 0
A99: 96 | B99: -0.06678369228 | C99: 0
A100: 97 | B100: -0.06579676144 | C100: 0
A101: 98 | B101: -0.06525343433 | C101: 0
A102: 99 | B102: -0.06495149644 | C102: 0
A103: 100 | B103: -0.06475199251 | C103: 0
A104: 101 | B104: -0.06453359122 | C104: 0
A105: 102 | B105: -0.06442536849 | C105: 0
A106: 103 | B106: -0.06371131095 | C106: 0
A107: 104 | B107: -0.06343603567 | C107: 0
A108: 105 | B108: -0.06284859003 | C108: 0
A109: 106 | B109: -0.0619843888 | C109: 0
A110: 107 | B110: -0.06193446346 | C110: 0
A111: 108 | B111: -0.06168273405 | C111: 0
A112: 109 | B112: -0.06147561976 | C112: 0
A113: 110 | B113: -0.06138108404 | C113: 0
A114: 111 | B114: -0.06112636721 | C114: 0
A115: 112 | B115: -0.06100220393 | C115: 0
A116: 113 | B116: -0.06089513413 | C116: 0
A117: 114 | B117: -0.06089088388 | C117: 0
A118: 115 | B118: -0.06072093978 | C118: 0
A119: 116 | B119: -0.0604066165 | C119: 0
A120: 117 | B120: -0.06020848047 | C120: 0
A121: 118 | B121: -0.06014228601 | C121: 0
A122: 119 | B122: -0.0592992427 | C122: 0
A123: 120 | B123: -0.05821065745 | C123: 0
A124: 121 | B124: -0.05820894886 | C124: 0
A125: 122 | B125: -0.05783655538 | C125: 0
A126: 123 | B126: -0.05748000689 | C126: 0
A127: 124 | B127: -0.05746977028 | C127: 0
A128: 125 | B128: -0.0573114849 | C128: 0
A129: 126 | B129: -0.05724061259 | C129: 0
A130: 127 | B130: -0.05708182719 | C130: 0
A131: 128 | B131: -0.05707703714 | C131: 0
A132: 129 | B132: -0.05701899892 | C132: 0
A133: 130 | B133: -0.05696769596 | C133: =IF(B133>=$H$2,1,0) -> 0
A134: 131 | B134: -0.05688519945 | C134: 0
A135: 132 | B135: -0.0568469616 | C135: 0
A136: 133 | B136: -0.05658546631 | C136: 0
A137: 134 | B137: -0.05633321593 | C137: 1
A138: 135 | B138: -0.0563215577 | C138: 1
A139: 136 | B139: -0.05628775068 | C139: 1
A140: 137 | B140: -0.05610172399 | C140: 1
A141: 138 | B141: -0.05573466287 | C141: 1
A142: 139 | B142: -0.05543077317 | C142: 1
A143: 140 | B143: -0.05541564886 | C143: 1
A144: 141 | B144: -0.05539186728 | C144: 1
A145: 142 | B145: -0.05503473171 | C145: 1
A146: 143 | B146: -0.05496370855 | C146: 1
A147: 144 | B147: -0.05484996684 | C147: 1
A148: 145 | B148: -0.05437633147 | C148: 1
A149: 146 | B149: -0.05349778879 | C149: 1
A150: 147 | B150: -0.05316756823 | C150: 1
A151: 148 | B151: -0.05305660197 | C151: 1
A152: 149 | B152: -0.05297608636 | C152: 1
A153: 150 | B153: -0.05275962709 | C153: 1
A154: 151 | B154: -0.05260721839 | C154: 1
A155: 152 | B155: -0.05242039486 | C155: 1
A156: 153 | B156: -0.05231738169 | C156: 1
A157: 154 | B157: -0.05225346614 | C157: 1
A158: 155 | B158: -0.0522505417 | C158: 1
A159: 156 | B159: -0.05214662017 | C159: 1
A160: 157 | B160: -0.0517554754 | C160: 1
A161: 158 | B161: -0.05165130991 | C161: 1
A162: 159 | B162: -0.05154643881 | C162: 1
A163: 160 | B163: -0.05116583282 | C163: 1
A164: 161 | B164: -0.05040232102 | C164: 1
A165: 162 | B165: -0.0503999819 | C165: 1
A166: 163 | B166: -0.05020915344 | C166: 1
A167: 164 | B167: -0.05003530484 | C167: 1
A168: 165 | B168: -0.05003454034 | C168: 1
A169: 166 | B169: -0.04998087662 | C169: 1
A170: 167 | B170: -0.04972962553 | C170: 1
A171: 168 | B171: -0.04957785955 | C171: 1
A172: 169 | B172: -0.04913204327 | C172: 1
A173: 170 | B173: -0.04888037656 | C173: 1
A174: 171 | B174: -0.04844256828 | C174: 1
A175: 172 | B175: -0.04816564351 | C175: 1
A176: 173 | B176: -0.04814311617 | C176: 1
A177: 174 | B177: -0.04785219396 | C177: 1
A178: 175 | B178: -0.04758406474 | C178: 1
A179: 176 | B179: -0.04757929859 | C179: 1
A180: 177 | B180: -0.04755609426 | C180: 1
A181: 178 | B181: -0.04744271545 | C181: 1
A182: 179 | B182: -0.04742221118 | C182: 1
A183: 180 | B183: -0.04732343125 | C183: 1
A184: 181 | B184: -0.04704304252 | C184: 1
A185: 182 | B185: -0.04625130223 | C185: 1
A186: 183 | B186: -0.04617502151 | C186: 1
A187: 184 | B187: -0.04616725453 | C187: 1
A188: 185 | B188: -0.04544590264 | C188: 1
A189: 186 | B189: -0.04513888571 | C189: 1
A190: 187 | B190: -0.04507126822 | C190: 1
A191: 188 | B191: -0.04502880722 | C191: 1
A192: 189 | B192: -0.04480107064 | C192: 1
A193: 190 | B193: -0.04459486374 | C193: 1
A194: 191 | B194: -0.04456075705 | C194: 1
A195: 192 | B195: -0.04450170203 | C195: 1
A196: 193 | B196: -0.04448978254 | C196: 1
A197: 194 | B197: -0.04448968418 | C197: =IF(B197>=$H$2,1,0) -> 1
A198: 195 | B198: -0.04430115589 | C198: 1
A199: 196 | B199: -0.04424034317 | C199: 1
A200: 197 | B200: -0.04396876709 | C200: 1
... 803 more rows
